Cogmind - Beta 16.1 @@@ ROGUE MODE // 2026.04.05 @ 11:13:07 Player: konomiyu Result: Destroyed by D-53 Grenadier with Mini Grenade Launcher Performance ------------- Evolutions (0) 0 Regions Visited (2) 400 Robots Destroyed (20) 100 Value Destroyed (315) 315 Prototype IDs (3) 60 Alien Tech Used (0) 0 Bonus (0) 0 TOTAL SCORE: 875 Bonus ------- None Cogmind --------- Core Integrity 0/250 Matter 290/300 Energy 84/100 System Corruption 0% Temperature Cool (0) Movement Rolling (95) Ox1 Location -10/Mines Parts ------- > --- POWER (1) -------- (None) > --- PROPULSION (2) --- Wheel > --- UTILITY (2) ------ Large Storage Unit > --- WEAPON (2) ------- (None) > --- INVENTORY (15) --- Light Ion Engine Light Treads Light Treads Heat Sink Medium Storage Unit Assault Rifle Grenade Launcher Datajack Mining Laser Peak State ------------ > --- POWER ------------ Light Ion Engine > --- PROPULSION ------- Light Treads Wheel > --- UTILITY ---------- Large Storage Unit Seismic Detector > --- WEAPON ----------- Small Laser Small Laser > --- INVENTORY -------- Ion Engine Light Treads Light Treads Wheel Medium Storage Unit Small Laser Assault Rifle Grenade Launcher Datajack Mining Laser [Rating: 8] Favorites ----------- Power Light Ion Engine Engine Light Ion Engine Propulsion Wheel Treads Light Treads Wheel Wheel Utility Seismic Detector Device Seismic Detector Storage Large Storage Unit Weapon Small Laser Energy Gun Small Laser Ballistic Gun Assault Rifle Build | -11 -10 -10 ------- Run | Yrd Mat Min Slots Evolved . | . . . Power . | . . . Propulsion . | . . . Utility . | . . . Weapon . | . . . Parts Attached 13 | 9 3 1 Power 2 | 1 1 . Engine 2 | 1 1 . Core . | . . . Reactor . | . . . Propulsion 3 | 2 . 1 Treads 1 | 1 . . Leg . | . . . Wheel 2 | 1 . 1 Hover . | . . . Flight . | . . . Utility 4 | 3 1 . Device 2 | 2 . . Storage 2 | 1 1 . Processor . | . . . Hackware . | . . . Protection . | . . . Artifact . | . . . Weapon 4 | 3 1 . Energy Gun 3 | 2 1 . Energy Cannon . | . . . Ballistic Gun 1 | 1 . . Ballistic Cannon . | . . . Launcher . | . . . Special Weapon . | . . . Impact Weapon . | . . . Slashing Weapon . | . . . Piercing Weapon . | . . . Special Melee Weapon . | . . . Unidentified Prototypes . | . . . Parts Lost 8 | . 2 6 Power 2 | . 1 1 Propulsion 2 | . . 2 Utility 1 | . . 1 Weapon 3 | . 1 2 Highest Loss Streak 6 | . 1 6 To Critical Strikes . | . . . Average Backups 8 | 3 9 9 Power . | . . 1 Propulsion 2 | 1 2 2 Utility 1 | . 1 2 Weapon 3 | 1 3 3 Tool/Special . | . . . Unused Backups 8 | . . 8 Power 1 | . . 1 Propulsion 2 | . . 2 Utility 2 | . . 2 Weapon 2 | . . 2 Tool/Special 1 | . . 1 Average Slot Usage (%) 98 | . 99 95 Engine 13 | . 14 13 Treads 13 | . 14 13 Wheel 13 | . 14 13 Device 13 | . 14 13 Storage 14 | . 14 14 Energy Gun 27 | . 27 26 Peak Build Rating 8 | 7 8 8 Average Rating 7 | 5 7 7 On Entrance 5 | . 7 8 Avg Prop Armor Cover (%) 13 | 13 13 13 Naked Turns . | . . . Heaviest Build 28 | 11 28 28 Greatest Support 10 | 10 10 10 Greatest Overweight (x) 6 | 1 2 6 Average Overweight (x) 1 | . 1 2 Largest Inventory Capacity 15 | 8 15 15 Average Capacity 12 | 6 13 15 Most Carried 11 | 6 11 10 Average Carried 8 | 3 9 9 Final Capacity 15 | 8 15 15 Final Carried 10 | 5 10 9 Class Distribution -------------------- 100% | Mutant Dominant Class ---------------- Mutant | -10/Materials Mutant | -10/Mines Resources | -11 -10 -10 ----------- Run | Yrd Mat Min Matter Collected 320 | 56 264 . Remotely . | . . . Salvage Created 474 | 58 376 40 Parts 51 | 12 31 8 Haulers Intercepted 1 | . 1 . Recyclers Shooed . | . . . Parts Field Recycled . | . . . Retrieved Matter . | . . . Parts Self-Destructed . | . . . Prevented . | . . . Parts Restored . | . . . Kills | -11 -10 -10 ------- Run | Yrd Mat Min Combat Hostiles Destroyed 14 | . 11 3 Guns 14 | . 11 3 Classes Destroyed 6 | 1 5 . Tunneler 3 | 3 . . Hauler 1 | . 1 . Operator 1 | . 1 . Watcher 1 | . 1 . Swarmer 9 | . 6 3 Grunt 5 | . 5 . Best Kill Streak 3 | 3 3 3 Combat Bots Only 3 | . 3 3 Max Kills in Single Turn 1 | 1 1 1 Gunslinging . | . . . Exploded . | . . . Melee . | . . . Uniques/NPCs Destroyed . | . . . Combat | -11 -10 -10 -------- Run | Yrd Mat Min Hostile Shots Fired 77 | . 61 16 Missed 22 | . 16 6 Hits 55 | . 45 10 Projectile 55 | . 45 10 AOE 8 | . . 8 Damage Taken 811 | . 433 378 Core 268 | . 70 198 Absorbed by Shields . | . . . Core Remaining (%) 100 | 100 . . Volleys Fired 59 | 9 47 3 Largest 2 | 2 2 2 Hottest 80 | 80 80 80 Shots Fired 115 | 18 91 6 Gun 115 | 18 91 6 Cannon . | . . . Launcher . | . . . Special . | . . . Kinetic . | . . . Thermal 115 | 18 91 6 Explosive . | . . . Electromagnetic . | . . . Robot Hit Streak 5 | 3 5 2 Robot Miss Streak 4 | 2 4 1 Penetration Max . | . . . Secondary Targets 3 | . 1 2 Max Gunslinging Chain 1 | . 1 1 Shots Hit Robots 64 | 11 50 3 Core Hits 32 | 3 26 3 Critical Kills . | . . . Critical Parts Destroyed . | . . . Critical Strikes . | . . . Melee Attacks . | . . . Impact . | . . . Slashing . | . . . Piercing . | . . . Sneak Attacks . | . . . Combat Hostiles . | . . . Follow-up Attacks . | . . . Damage Inflicted 739 | 132 573 34 Guns 725 | 132 559 34 Cannons . | . . . Explosions . | . . . Melee . | . . . Ramming 14 | . 14 . Kinetic . | . . . Thermal 725 | 132 559 34 Explosive . | . . . Electromagnetic . | . . . Impact . | . . . Slashing . | . . . Piercing . | . . . Highest Corruption . | . . . Average Corruption . | . . . Corruption Purged . | . . . Corruption Blocked . | . . . Overload Shots . | . . . Overflow Damage . | . . . Projectiles . | . . . Explosions . | . . . Melee . | . . . Knockbacks 1 | . 1 . Impact 1 | . 1 . Kinetic . | . . . Secondary . | . . . Self-Inflicted Damage 7 | . 7 . Shots . | . . . Rammed 1 | . 1 . Targets Rammed 1 | . 1 . Kicked . | . . . Crushed . | . . . Highest Temperature 198 | 92 198 54 Average Temperature 50 | 42 54 28 Received Heat Transfer 114 | . 114 . Siege Activations . | . . . Martial Activations . | . . . Shielding Activations . | . . . Robots Disrupted . | . . . Combat Hostiles . | . . . Robots Corrupted . | . . . Combat Hostiles . | . . . Parts Fried . | . . . Impact Corruptions . | . . . Robots Melted . | . . . Combat Hostiles . | . . . Parts Melted 2 | 1 1 . Heat Transferred 1650 | 300 1275 75 Parts Sabotaged . | . . . Parts Stolen . | . . . Parts Stripped . | . . . Power Chain Reactions . | . . . Alert | -11 -10 -10 ------- Run | Yrd Mat Min Maximum Alert Level . | . . . Low Security (%) 100 | 100 100 100 Level 1 . | . . . Level 2 . | . . . Level 3 . | . . . Level 4 . | . . . Level 5 . | . . . High Security . | . . . Max Security . | . . . Peak Influence 121 | 10 121 60 Initial 26 | . . 26 Average 36 | 1 42 29 Influence Increases 436 | 15 351 70 Destroy 0b10 Robot/C 280 | . 220 60 Destroy 0b10 Robot/NC 30 | 15 15 . Destroy Leader 54 | . 44 10 Successful Hack 42 | . 42 . Lose Combat Pursuer 30 | . 30 . Influence Decreases 436 | 15 282 139 Entered New Map 43 | . . 43 Time Decay 357 | 15 262 80 Lost Part 30 | . 20 10 Lost Ally 6 | . . 6 Squads Dispatched 2 | . 2 . Investigation 2 | . 2 . Extermination . | . . . Reinforcement . | . . . Assault . | . . . Garrison . | . . . Intercept . | . . . Searches Triggered . | . . . Construction Impeded . | . . . Haulers Reinforced . | . . . Active Scanning Responses . | . . . Cargo Convoy Interrupts . | . . . Stealth | -11 -10 -10 --------- Run | Yrd Mat Min Distress Signals 3 | . 2 1 Communications Jammed . | . . . Distress Signals . | . . . Times Spotted 34 | . 21 13 Peak Tracking Total 11 | . 6 11 Tactical Retreats 2 | . 2 . Traps | -11 -10 -10 ------- Run | Yrd Mat Min Traps Triggered 1 | . 1 . Indirectly . | . . . Trap Hack Attempts . | . . . Triggered . | . . . Disarmed . | . . . Reprogrammed . | . . . Reused . | . . . Traps Extracted . | . . . Installed . | . . . Triggered . | . . . Machines | -11 -10 -10 ---------- Run | Yrd Mat Min Machines Disabled . | . . . Max in Single Turn . | . . . Machines Repaired . | . . . Machines Dismantled . | . . . Machines Sabotaged . | . . . Overloaded Fab Kills . | . . . Hacking | -11 -10 -10 --------- Run | Yrd Mat Min Machines Accessed 7 | . 7 . Terminals 7 | . 7 . Fabricators . | . . . Repair Stations . | . . . Recycling Units . | . . . Scanalyzers . | . . . Garrison Access . | . . . Total Hacks 19 | . 19 . Successful 6 | . 6 . Failed 12 | . 12 . Catastrophic 4 | . 4 . Database Lockouts 1 | . 1 . Manual 16 | . 16 . Terminals 19 | . 19 . Fabricators . | . . . Repair Stations . | . . . Recycling Units . | . . . Scanalyzers . | . . . Garrison Access . | . . . Terminal Hacks 3 | . 3 . Robot Analysis 1 | . 1 . Prototype ID Bank 1 | . 1 . Terminal Index 1 | . 1 . Fabricator Hacks . | . . . Repair Station Hacks . | . . . Recycling Unit Hacks . | . . . Scanalyzer . | . . . Garrison Access Hacks . | . . . Unauthorized Hacks 3 | . 3 . Terminals 3 | . 3 . Assimilate 2 | . 2 . Operators 1 | . 1 . Fabricators . | . . . Repair Stations . | . . . Recycling Units . | . . . Scanalyzers . | . . . Garrison Access . | . . . Data Cores Recovered . | . . . Used . | . . . Hacking Detections 7 | . 7 . Full Trace Events 3 | . 3 . Feedback Events . | . . . Feedback Blocked . | . . . Robot Schematics Acquired . | . . . Robots Built . | . . . Authchips . | . . . Time . | . . . Total Robot Build Rating . | . . . Part Schematics Acquired . | . . . Parts Built . | . . . Authchips . | . . . Time . | . . . Total Part Build Rating . | . . . Part Studies Acquired . | . . . Parts Repaired . | . . . Time . | . . . Parts Recycled . | . . . Recycled Matter . | . . . Retrieved Matter . | . . . Retrieved Components . | . . . Parts Scanalyzed . | . . . Part Schematics Acquired . | . . . Parts Damaged . | . . . Bothacking | -11 -10 -10 ------------ Run | Yrd Mat Min Used RIF Installer . | . . . Robots Hacked . | . . . Non-combat . | . . . Combat . | . . . Robot Hacks Applied . | . . . Relay Couplers Released . | . . . Fabnet Peak Effective % . | . . . Robots Rewired . | . . . Allies Hacked . | . . . Hacks Repelled . | . . . Allies | -11 -10 -10 -------- Run | Yrd Mat Min Total Allies 1 | . 1 . Largest Group 1 | . 1 1 Highest-Rated Group 10 | . 10 10 Highest-Rated Ally 10 | . 10 10 Total Orders 2 | . 2 . STAY 1 | . 1 . FOLLOW 1 | . 1 . Ally Attacks . | . . . Total Damage . | . . . Kills . | . . . Allies Corrupted . | . . . Allies Melted . | . . . Intel | -11 -10 -10 ------- Run | Yrd Mat Min Active Infowar (turns) 937 | 29 741 167 Seismic 937 | 29 741 167 Robot Analysis Total 1 | . 1 . Derelict Logs Recovered . | . . . Drone Launches . | . . . Drone Recoveries . | . . . Exploration | -11 -10 -10 ------------- Run | Yrd Mat Min Turns Passed 1000 | 84 741 175 Spaces Moved 711 | 46 517 148 Core 2 | 1 . 1 Treads . | . . . Legs . | . . . Wheels 709 | 45 517 147 Hover . | . . . Flight . | . . . Fastest Speed 50 | 50 95 95 Average Speed 105 | 83 105 111 Slowest Speed 350 | 95 110 350 Overloaded Moves . | . . . Propulsion Burnouts . | . . . Robots Hopped . | . . . Potential Cave-ins . | . . . Cave-ins Triggered . | . . . Exploration Rate (%) 33 | 3 77 20 Regions Visited 2 Branch Regions 1 Pre-discovered Areas . | . . . Known Exits Taken . | . . . Unknown Exits Taken 2 | 1 1 . Scrap Searched . | . . . Spaces Dug . | . . . Terrain Destroyed . | . . . Melee . | . . . Projectile . | . . . AOE . | . . . Terrain Rammed . | . . . Walls Destroyed . | . . . Machines Disabled . | . . . Actions | -11 -10 -10 --------- Run | Yrd Mat Min Total 842 | 69 621 152 Wait 46 | . 46 . Move 709 | 45 516 148 Hop . | . . . Pick Up 12 | 5 7 . Fast Attach 7 | 7 . . Attach 3 | . 2 1 Detach . | . . . Swap 3 | 2 1 . Drop 2 | 1 1 . Fire 59 | 9 47 3 Melee . | . . . Ram 1 | . 1 . Kick . | . . . Crush . | . . . Escape Stasis . | . . . Rewire . | . . . Trap . | . . . Miscellaneous . | . . . Route ------- -11/Scrapyard -10/Materials (discovered 4 exits: [*Mat x3] / [*Min]) -10/Mines History --------- Turn | Location | Event 10 | -11/Scrapyard | Discovered new exit (range 15) 85 | -11/Scrapyard | Entered Materials 101 | -10/Materials | Discovered new exit (range 15) 192 | -10/Materials | Discovered new exit (range 8) 301 | -10/Materials | Discovered new exit (range 14) 315 | -10/Materials | Build established: Mutant 620 | -10/Materials | Discovered new exit (range 15) 688 | -10/Materials | Central database locked down 826 | -10/Materials | Entered Mines 826 | -10/Mines | Accompanied by 1 ally 915 | -10/Mines | Assembled infested the area 983 | -10/Mines | Core integrity fell below 50% 998 | -10/Mines | Core integrity fell below 20% 1001 | -10/Mines | Destroyed by D-53 Grenadier with Mini Grenade Launcher Last Messages --------------- their mining defense operations..." 00829_ Y9-S53(g) slips into the shadows. 00879_ Technician 1a destroyed. 00880_ S-10 Pest destroyed. 00880_ Switching to secondary target: S-10 Pest. 00883_ S-10 Pest destroyed. 00883_ Switching to secondary target: S-10 Pest. 00886_ S-10 Pest destroyed. 00915_ ALERT: Infestation in the mines, dispatching Demolisher response squad. 00937_ Laser Drill disabled. 00980_ C-45 Heavy ARC bursts open, deploying its payload. 00980_ D-53 Grenadier unfolds itself. 00993_ Seismic Detector destroyed. 00993_ Ion Engine destroyed. 00993_ Lgt. Treads destroyed. 00993_ Laser Drill disabled. 00995_ Wheel destroyed. 00996_ Sml. Laser destroyed. Map ----- +----------------------------------------------------+ | | | | | | | | | | | | | | | | | | | | | | | | | ?????????????????????????????????????????????????? | | ??????????????##################?????????????????? | | ??????????????# #?????????????????? | | ??????????????# """ """ """ #?????????????????? | | ???#####??????# """ """ """ #?????????????????? | | ??## ######?# """ """ """ #?????????????????? | | ?## ### a #?????????????????? | | ?# %=""" " ##????????????????? | | ?# *%/=""" "" #????????????????? | | ??# ### *%[% "" "" #????????????????? | | ??## ##?##=="[ a ##????????????????? | | ??## ##??#"=" """ " ###??????????????? | | ?## ####"%" "" "" ##?????????????? | | ?# " " "" @d d #?????????????? | | ?# a a aa a #?????????????? | | ?# #; ; ;####### # # #???##????????? | | ?## ^^ # ?????####?####### #### # #??????? | | ??## # # #?????????????????# ######?? | | ???## # ^ #?????????????????# % #?? | | ????# ^ #????????????????# ### #?? | | ???## ## ##????????????????# # ## ####?# #?? | | ???# #????????????????######?##????# #?? | | ??# #?????????????????????????????# #?? | | ??# ##?????????????????????????????# #?? | | ??## ##??????????????????????????????# ?? | | ???## ##??????????????????????????????? ?? | | ????########???????????????????????????????? ?? | | ???????????????????????????????????????????? ? | | ???????????????????????????????????????????? ? | | ????????????????????????????????????????????# ? | | ????????????????????????????????????????????? ? | | ?????????????????????????????????????????????# # | | ??????????????????????????????????????????????#### | | ?????????????????????????????????????????????????? | | ?????????????????????????????????????????????????? | | ?????????????????????????????????????????????????? | | ?????????????????????????????????????????????????? | | ?????????????????????????????????????????????????? | +----------------------------------------------------+ Best States ------------- Heat Dissipation 25 Energy Generation 10 Energy Capacity 250 Matter Stores 300 Matter Capacity 300 Sight Range 16 Terrain Scan Density 10 Evasion (%) 44 Item Schematics ----------------- None Robot Schematics ------------------ None Fabricated ------------ Nothing Repaired ---------- Nothing Studied --------- None Alien Tech Used ----------------- None Achievements -------------- None Challenges ------------ None Game ------ Seed BattleDoorDeconstructor Manual? 0 Play Time 00:09:28 Cumulative 44.2 hours Start 2026.04.05 @ 11:04:50 End 2026.04.05 @ 11:13:07 Sessions 1 Manual Loads 0 Difficulty Rogue Special Mode None Game No. 46 Rogue 46 Adventurer 0 Explorer 0 Win Type - Total 0 Types 0/0/0/0/0/0/0/0/0/0 Lore% 35 Gallery% 28 Achievement% 23 Wizard Run 0 Options --------- Layout 1 ASCII 0 Keyboard 1 Movement Vi Keybinds 0 Fullscreen 2 Font 24/Smallcaps Map View 50x35 Zoom Use 0% Tactical HUD 1 Map Filters NONE Filters NONE Steam 1 RUN: 3866e815-c528-4e92-9558-a348dd08ea2b